Cogmind - Beta 13 @@@ ROGUE MODE // 2024.05.10 @ 21:20:03 Player: Spoodle Result: Destroyed by S-43 Plague with Heavy Machine Gun Performance ------------- Evolutions (9) 4500 Regions Visited (17) 3400 Robots Destroyed (280) 1400 Value Destroyed (13904) 13904 Prototype IDs (37) 740 Alien Tech Used (0) 0 Bonus (2348) 2348 TOTAL SCORE: 26292 Bonus ------- High Alert Combat Kills 2053 Follower Combat Kills 308 Aligned with FarCom 300 Friendly Fire -313 Cogmind --------- Core Integrity 0/1600 Matter 135/300 Energy 100/100 System Corruption 27% Temperature Cool (0) Movement Core (50) Location -1/Access Parts ------- > --- POWER (3) -------- (None) > --- PROPULSION (6) --- (None) > --- UTILITY (13) ----- (None) > --- WEAPON (3) ------- (None) > --- INVENTORY (5) ---- High-capacity Storage Unit Guided Plasma Cannon Improved Plasma Cutter Peak State ------------ > --- POWER ------------ Antimatter Reactor Light Particle Reactor Light Quantum Reactor > --- PROPULSION ------- Advanced Medium Treads Advanced Heavy Treads Biometal Leg Biometal Leg Centrium Leg > --- UTILITY ---------- Advanced Power Amplifier Advanced Heat Sink Advanced Heat Sink Advanced Heat Sink Advanced Heat Sink High-capacity Storage Unit Energy Well Advanced Signal Interpreter Advanced Salvage Targeting Computer Layered Heavy Armor Plating Advanced Force Field Drone Bay > --- WEAPON ----------- Enhanced Quantum Rifle Nova Cannon Enhanced Nova Cannon > --- INVENTORY -------- Improved Fusion Compressor Light Particle Reactor Myomer Leg Advanced Heat Sink Advanced Heat Sink Advanced Heat Sink High-capacity Storage Unit Structural Scanner Advanced Target Analyzer Improved Shock Absorption System Advanced Shield Generator Dynamic Insulation System Improved Recalibrator Dispersion Rifle Enhanced Quantum Rifle Long-range Proton Cannon Guided Plasma Cannon Enhanced Nova Cannon Enhanced Nova Cannon Improved Plasma Cutter [Rating: 179] Favorites ----------- Power Reinforced Deuterium Engine Engine Reinforced Deuterium Engine Power Core Neutrino Core Reactor Light Quantum Reactor Propulsion Armored Treads Treads Armored Treads Leg Aluminum Leg Utility Advanced Heat Sink Device Advanced Heat Sink Storage High-capacity Storage Unit Processor Advanced Salvage Targeting Computer Protection Improved Power Shielding Weapon Gatling Laser Energy Gun Gatling Laser Energy Cannon Heavy Ion Cannon Ballistic Gun Assault Rifle Ballistic Cannon Advanced Assault Cannon Launcher Improved Grenade Launcher Build | -11 -10 -10 -10 -9 -8 -7 -7 -7 -6 -6 -6 -6 -5 -4 -3 -2 -1 ------- Run | Yrd Mat Min Exi Min Mat Fac Low Low Fac Ext Cet Arc Fac Fac Res Res Acc Slots Evolved 18 | . . . . . 4 2 . . 2 . . . 2 2 2 2 2 Power 2 | . . . . . 1 . . . . . . . . 1 . . . Propulsion 4 | . . . . . 1 1 . . . . . . . . . 1 1 Utility 11 | . . . . . 2 . . . 2 . . . 2 1 2 1 1 Weapon 1 | . . . . . . 1 . . . . . . . . . . . Parts Attached 374 | 7 9 21 . 11 55 26 16 1 12 42 17 12 33 25 13 21 53 Power 34 | 1 . 2 . . 7 1 . . 1 1 1 1 3 5 1 3 7 Engine 16 | 1 . 2 . . 7 1 . . . 1 1 . 2 1 . . . Core 6 | . . . . . . . . . 1 . . 1 . 1 . . 3 Reactor 12 | . . . . . . . . . . . . . 1 3 1 3 4 Propulsion 74 | 2 2 3 . 4 13 4 5 . . 11 4 4 4 3 1 2 12 Treads 32 | . 2 1 . . 9 4 3 . . 1 . 3 4 1 1 1 2 Leg 42 | 2 . 2 . 4 4 . 2 . . 10 4 1 . 2 . 1 10 Wheel . | . . . . . . . . . . . . . . . . . . Hover . | . . . . . . . . . . . . . . . . . . Flight . | . . . . . . . . . . . . . . . . . . Utility 155 | 2 4 4 . 1 19 9 4 1 6 21 4 5 16 14 8 10 27 Device 123 | 1 1 4 . 1 14 6 2 1 5 18 3 5 13 11 5 9 24 Storage 7 | 1 3 . . . 1 . . . . . . . . 1 1 . . Processor 7 | . . . . . . 1 . . 1 . . . 1 . 1 . 3 Hackware . | . . . . . . . . . . . . . . . . . . Protection 18 | . . . . . 4 2 2 . . 3 1 . 2 2 1 1 . Artifact . | . . . . . . . . . . . . . . . . . . Weapon 111 | 2 3 12 . 6 16 12 7 . 5 9 8 2 10 3 3 6 7 Energy Gun 45 | 1 1 2 . . 8 4 4 . 4 5 1 1 3 2 2 5 2 Energy Cannon 26 | . . 2 . 3 3 3 1 . . 1 3 . 2 1 1 1 5 Ballistic Gun 15 | 1 1 4 . 1 1 2 . . . . 2 1 2 . . . . Ballistic Cannon 6 | . . 2 . . 2 2 . . . . . . . . . . . Launcher 19 | . 1 2 . 2 2 1 2 . 1 3 2 . 3 . . . . Special Weapon . | . . . . . . . . . . . . . . . . . . Impact Weapon . | . . . . . . . . . . . . . . . . . . Slashing Weapon . | . . . . . . . . . . . . . . . . . . Piercing Weapon . | . . . . . . . . . . . . . . . . . . Special Melee Weapon . | . . . . . . . . . . . . . . . . . . Unidentified Prototypes 12 | . . . . . 2 1 1 . 1 . 3 2 1 1 . . . Parts Lost 96 | . 1 6 . . 8 4 . . . 11 7 2 14 5 . 2 36 Power 16 | . . 2 . . 2 1 . . . . 1 1 2 2 . . 5 Propulsion 24 | . . 2 . . 2 2 . . . 4 1 . 3 1 . . 9 Utility 37 | . . 1 . . 3 1 . . . 5 3 . 4 2 . 2 16 Weapon 19 | . 1 1 . . 1 . . . . 2 2 1 5 . . . 6 Highest Loss Streak 27 | . 1 3 . . 3 2 . . . 3 7 1 5 3 . 2 27 To Critical Strikes 2 | . . . . . . . . . . . 1 . . . . . 1 Average Slot Usage (%) 96 | . 99 99 100 100 98 99 100 100 100 97 97 93 89 93 95 94 89 Engine 9 | . 14 13 14 14 17 15 15 15 9 10 13 8 5 2 . . . Core 1 | . . . . . . . . . 3 2 . 3 1 4 2 . . Reactor 2 | . . . . . . . . . . . . . 2 8 10 13 11 Treads 17 | . 23 19 . . 22 29 29 30 26 8 . 15 16 14 14 15 6 Leg 6 | . 4 8 28 28 4 . . . . 16 26 5 . . . 1 13 Device 20 | . 14 14 14 14 19 18 15 15 20 18 17 19 23 24 30 29 27 Storage 8 | . 14 14 14 14 9 7 7 7 6 6 6 6 5 10 9 8 7 Processor 3 | . . . . . . . 1 . 6 6 6 6 5 5 6 8 8 Protection 4 | . . . . . 6 4 5 7 6 6 6 6 7 5 4 3 2 Energy Gun 9 | . 13 4 . . 11 12 10 15 12 16 6 9 7 11 13 9 4 Energy Cannon 4 | . . 6 14 10 2 4 5 7 6 2 7 6 4 2 . 2 7 Ballistic Gun 3 | . 13 9 14 11 2 4 1 . . . 3 1 2 . . . . Naked Turns 34 | . . . . . . . . . . . . . . . . . 34 Heaviest Build 169 | 12 26 33 31 33 83 85 89 89 91 97 94 106 111 136 142 148 169 Greatest Support 163 | 20 40 40 20 25 63 83 82 80 80 85 85 126 126 126 133 163 158 Greatest Overweight (x) 5 | . . 3 1 1 5 1 2 1 1 4 1 1 1 1 1 1 2 Average Overweight (x) . | . . . 1 1 1 . . 1 1 1 1 . . . . . . Largest Inventory Capacity 20 | 8 15 15 15 15 20 20 20 20 20 20 20 20 20 20 20 20 20 Average Capacity 18 | 7 11 15 15 15 18 20 20 20 20 20 20 20 20 20 20 20 19 Most Carried 20 | 7 14 15 15 15 20 20 20 20 20 20 20 20 20 20 20 20 20 Average Carried 17 | 4 10 14 14 14 18 19 19 19 19 19 18 19 17 19 19 19 18 Final Capacity 20 | 8 15 15 15 15 20 20 20 20 20 20 20 20 20 20 20 20 5 Final Carried 20 | 7 14 15 15 15 19 19 20 20 20 20 19 20 18 20 20 18 3 Class Distribution -------------------- 32% | Scavenger-Tank 23% | Scavenger-Skirmisher 18% | Mutant 14% | Scavenger-Mutant 5% | Tank 5% | Skirmisher Dominant Class ---------------- Mutant | -10/Materials Mutant | -10/Mines Mutant | -10/Exiles Mutant | -9/Mines Scavenger-Mutant | -8/Materials Skirmisher | -7/Factory Tank | -7/Lower Caves Scavenger-Tank | -7/Lower Caves Scavenger-Skirmisher | -6/Factory Scavenger-Tank | -6/Extension Scavenger-Skirmisher | -6/Cetus Scavenger-Skirmisher | -6/Archives Scavenger-Tank | -5/Factory Scavenger-Tank | -4/Factory Scavenger-Tank | -3/Research Scavenger-Tank | -2/Research Scavenger-Tank | -1/Access Resources | -11 -10 -10 -10 -9 -8 -7 -7 -7 -6 -6 -6 -6 -5 -4 -3 -2 -1 ----------- Run | Yrd Mat Min Exi Min Mat Fac Low Low Fac Ext Cet Arc Fac Fac Res Res Acc Matter Collected 5087 | 255 160 302 81 199 709 596 246 . 121 575 187 166 485 195 183 249 378 Remotely . | . . . . . . . . . . . . . . . . . . Salvage Created 13907 | 81 194 449 . 66 2293 1194 162 . 210 1347 252 391 1251 936 877 1332 2872 Parts 616 | 3 11 28 . 19 100 56 11 . 15 38 9 14 62 43 32 61 114 Haulers Intercepted 3 | . 1 . . . 1 . . . . . . . . . 1 . . Recyclers Shooed 6 | . 1 2 . . 1 . . . . 2 . . . . . . . Parts Field Recycled . | . . . . . . . . . . . . . . . . . . Retrieved Matter . | . . . . . . . . . . . . . . . . . . Parts Self-Destructed 13 | . . . . . . . 13 . . . . . . . . . . Prevented . | . . . . . . . . . . . . . . . . . . Kills | -11 -10 -10 -10 -9 -8 -7 -7 -7 -6 -6 -6 -6 -5 -4 -3 -2 -1 ------- Run | Yrd Mat Min Exi Min Mat Fac Low Low Fac Ext Cet Arc Fac Fac Res Res Acc Combat Hostiles Destroyed 242 | . 5 16 . 10 50 23 7 . 4 20 4 4 25 12 9 17 36 Guns 118 | . 2 2 . . 25 16 2 . 3 18 2 2 14 8 7 14 3 Cannons 63 | . . 9 . . 13 3 . . 1 . 2 1 4 2 . 2 26 AOE 45 | . 3 5 . 10 9 4 5 . . 2 . . 6 1 . . . Classes Destroyed 19 | 2 5 1 . . 7 3 . . . 1 . . . . . . . Worker 9 | . 1 1 . 1 1 2 . . . . . . 1 . 1 1 . Builder 3 | . . . . . . . . . . 2 . . . . . 1 . Tunneler 5 | 1 . 3 . 1 . . . . . . . . . . . . . Hauler 3 | . 1 . . . 1 . . . . . . . . . 1 . . Recycler 4 | 1 . . . . 1 . . . . 2 . . . . . . . Mechanic 2 | . . . . . . 1 . . . . . . 1 . . . . Operator 4 | . . . . . . 1 . . . . . 3 . . . . . Watcher 7 | . 1 . . . . 2 . . 2 . 1 . . 1 . . . Swarmer 33 | . 3 3 . 10 2 . 6 . . 2 . . 4 . . 3 . Grunt 100 | . 2 12 . . 23 12 . . . 10 . . 10 6 6 5 14 Brawler 10 | . . . . . 3 2 . . . 2 . . . 1 . . 2 Duelist 11 | . . . . . 5 1 . . . . . . 1 . . 1 3 Protector 4 | . . . . . 2 . . . . . . . 2 . . . . Sentry 27 | . . . . . 10 3 . . . 5 . 4 2 1 1 . 1 Specialist 2 | . . . . . 2 . . . . . . . . . . . . Hunter 13 | . . . . . 1 3 1 . . . . . 2 . . 2 4 Programmer 35 | . . . . . . 2 . . 4 1 . . 4 4 2 6 12 Heavy 2 | . . . . . 2 . . . . . . . . . . . . Cetus Guard 4 | . . . . . . . . . . . 4 . . . . . . Assembled 1 | . . 1 . . . . . . . . . . . . . . . Butcher 1 | . . . . . . . . . . 1 . . . . . . . Guerrilla 1 | . . . . . . . . . . . 1 . . . . . . Best Kill Streak 10 | 1 4 7 . 5 10 7 4 . 2 6 4 1 7 5 6 6 7 Combat Bots Only 9 | . 3 4 . 4 9 5 4 . 1 5 3 1 6 5 5 4 7 Max Kills in Single Turn 6 | 1 2 4 . 3 5 6 4 . 2 2 1 1 5 1 1 2 1 Gunslinging 1 | . . . . . 1 . . . . . . . . . . . . Exploded 5 | . 2 2 . 2 5 4 4 . . 1 . . 4 1 . . . Melee . | . . . . . . . . . . . . . . . . . . Uniques/NPCs Destroyed . | . . . . . . . . . . . . . . . . . . Combat | -11 -10 -10 -10 -9 -8 -7 -7 -7 -6 -6 -6 -6 -5 -4 -3 -2 -1 -------- Run | Yrd Mat Min Exi Min Mat Fac Low Low Fac Ext Cet Arc Fac Fac Res Res Acc Hostile Shots Fired 2025 | . 23 72 . 40 211 248 34 . 10 203 69 32 230 54 71 139 589 Missed 593 | . 8 15 . 14 52 75 9 . 4 69 24 9 64 18 22 42 168 Damage Taken 21974 | . 262 806 . 234 2472 1841 254 . 46 1824 1118 549 3023 644 505 1262 7134 Core 2884 | . 36 111 . 25 203 125 14 . . 155 219 22 274 17 20 62 1601 Absorbed by Shields 5135 | . . . . . 305 180 92 . 41 282 95 . 336 99 525 977 2203 Redirected to Shielding 110 | . . . . . . 48 15 . 4 43 . . . . . . . Ignored by Resistances 556 | . . . . . . . . . . . . . . . . . 556 Core Remaining (%) 76 | 100 . . . 31 63 . . 80 . . . 53 72 98 98 95 . Volleys Fired 646 | 9 17 50 . 14 133 60 9 . 10 58 23 20 55 23 27 49 89 Largest 3 | 2 2 2 . 2 2 3 3 . 3 3 3 3 3 3 3 3 3 Hottest 418 | 70 80 125 . 80 141 203 200 . 220 220 210 226 236 238 242 418 328 Shots Fired 1562 | 18 34 95 . 19 235 171 21 . 28 140 55 54 143 69 82 140 258 Gun 1006 | 18 32 45 . 5 161 123 14 . 18 106 15 31 104 51 82 115 86 Cannon 511 | . . 44 . 6 69 47 4 . 9 24 37 23 33 18 . 25 172 Launcher 45 | . 2 6 . 8 5 1 3 . 1 10 3 . 6 . . . . Special . | . . . . . . . . . . . . . . . . . . Kinetic 217 | 9 15 50 . 5 38 60 2 . . . . 4 34 . . . . Thermal 1286 | 9 17 39 . 6 192 110 16 . 27 130 52 50 103 62 82 140 251 Explosive 45 | . 2 6 . 8 5 1 3 . 1 10 3 . 6 . . . . Electromagnetic 14 | . . . . . . . . . . . . . . 7 . . 7 Robot Hit Streak 31 | 4 9 11 . 4 31 13 3 . 8 13 14 9 18 17 22 26 28 Robot Miss Streak 6 | 4 3 3 . 2 3 3 2 . 5 5 3 3 3 2 2 3 6 Penetration Max 1 | . . . . . . 1 . . . . . . 1 . . . . Secondary Targets 8 | . . . . . 2 . . . . 2 . . 1 . 2 1 . Max Gunslinging Chain 1 | . . . . . 1 . . . . 1 . . 1 . 1 1 . Shots Hit Robots 1038 | 9 22 60 . 11 175 110 9 . 20 88 43 35 88 49 60 88 171 Core Hits 611 | 4 13 30 . 10 105 63 9 . 19 89 24 26 65 23 20 38 73 Critical Kills 11 | . . . . . . . . . . . . . 1 4 1 . 5 Critical Parts Destroyed 13 | . . . . . . . . . . . . . 3 3 3 4 . Critical Strikes 39 | . . . . . 8 2 . . . 2 1 . 4 8 5 4 5 Burn 14 | . . . . . 7 2 . . . 2 1 . . 1 1 . . Meltdown 5 | . . . . . . . . . . . . . . . . . 5 Destroy 19 | . . . . . . . . . . . . . 4 7 4 4 . Blast 1 | . . . . . 1 . . . . . . . . . . . . Melee Attacks . | . . . . . . . . . . . . . . . . . . Impact . | . . . . . . . . . . . . . . . . . . Slashing . | . . . . . . . . . . . . . . . . . . Piercing . | . . . . . . . . . . . . . . . . . . Sneak Attacks . | . . . . . . . . . . . . . . . . . . Combat Hostiles . | . . . . . . . . . . . . . . . . . . Follow-up Attacks . | . . . . . . . . . . . . . . . . . . Damage Inflicted 35577 | 104 612 1358 . 648 5524 3122 531 . 476 2952 1351 1003 3912 1794 1962 3394 6834 Guns 18645 | 104 209 283 . 59 2996 1657 120 . 352 1978 399 691 2065 1158 1900 2832 1842 Cannons 11279 | . . 614 . 52 1618 837 28 . 124 277 737 312 666 467 . 562 4985 Explosions 5584 | . 403 461 . 537 910 628 383 . . 697 215 . 1181 169 . . . Melee . | . . . . . . . . . . . . . . . . . . Ramming 69 | . . . . . . . . . . . . . . . 62 . 7 Kinetic 2835 | 41 57 431 . 59 641 687 11 . . . . 110 798 . . . . Thermal 28145 | 63 220 466 . 52 3973 2300 137 . 476 2382 1136 893 2497 1638 1900 3394 6618 Explosive 4135 | . 335 461 . 537 910 135 383 . . 570 215 . 589 . . . . Electromagnetic 393 | . . . . . . . . . . . . . 28 156 . . 209 Impact . | . . . . . . . . . . . . . . . . . . Slashing . | . . . . . . . . . . . . . . . . . . Piercing . | . . . . . . . . . . . . . . . . . . Highest Corruption 27 | . . . . . . 1 1 . 1 1 1 1 1 2 3 11 27 Average Corruption 2 | . . . . . . 1 1 . 1 1 1 1 1 1 2 5 5 Corruption Purged 1 | . . . . . . . 1 . . . . . . . . . . Corruption Blocked . | . . . . . . . . . . . . . . . . . . Effects 128 | . . . . . . 1 14 . 12 17 3 7 3 8 10 25 28 Message Errors 37 | . . . . . . . 2 . 3 5 2 1 . 4 4 11 5 Matter Fused 32 | . . . . . . . 4 . 4 6 1 2 1 1 4 3 6 Heat Flow Errors 9 | . . . . . . 1 1 . 1 . . . . 1 . 2 3 Energy Discharges 18 | . . . . . . . 3 . 2 1 . 1 1 1 . 3 6 Parts Rejected 4 | . . . . . . . . . . 2 . . . . . 2 . Data Loss (minor) 15 | . . . . . . . 1 . . 1 . 3 1 1 1 3 4 Data Loss (major) 5 | . . . . . . . 1 . 2 1 . . . . . 1 . Misfires 3 | . . . . . . . 1 . . 1 . . . . 1 . . Alerts 2 | . . . . . . . 1 . . . . . . . . . 1 Weapon Failures 3 | . . . . . . . . . . . . . . . . . 3 Overload Shots 70 | . . . . . . . . . . . . . . 21 25 24 . Effects 4 | . . . . . . . . . . . . . . 1 . 3 . Energy Bleed 1 | . . . . . . . . . . . . . . . . 1 . Heat Surge 3 | . . . . . . . . . . . . . . 1 . 2 . Overflow Damage 458 | . 48 34 . 50 40 57 . . . 21 3 . 108 23 . 14 60 Projectiles 137 | . . 16 . . . 9 . . . 4 . . 11 23 . 14 60 Explosions 321 | . 48 18 . 50 40 48 . . . 17 3 . 97 . . . . Melee . | . . . . . . . . . . . . . . . . . . Knockbacks 9 | . . 5 . . 4 . . . . . . . . . . . . Impact . | . . . . . . . . . . . . . . . . . . Kinetic 8 | . . 4 . . 4 . . . . . . . . . . . . Secondary 1 | . . 1 . . . . . . . . . . . . . . . Self-Inflicted Damage 402 | . 81 96 . 9 111 . . . . . 9 . 23 . . . 73 Shots 12 | . 1 4 . 1 3 . . . . . 1 . 1 . . . 1 Rammed 3 | . . . . . . . . . . . . . . . 3 . . Targets Rammed 4 | . . . . . . . . . . . . . . . 3 . 1 Kicked 1 | . . . . . . . . . . . . . . . . . 1 Crushed . | . . . . . . . . . . . . . . . . . . Highest Temperature 448 | 50 40 243 . . 267 278 194 . 247 227 125 261 293 274 50 448 312 Average Temperature 73 | 22 17 66 . . 82 89 71 . 96 97 47 58 51 47 19 145 51 Received Heat Transfer 5162 | . 81 511 . . 1079 660 . . . 671 49 72 929 134 83 44 849 Effects 6 | . . . . . 3 . . . . . . . . . . 3 . Shutdowns 1 | . . . . . . . . . . . . . . . . 1 . Energy Bleed 3 | . . . . . 2 . . . . . . . . . . 1 . Interference 1 | . . . . . 1 . . . . . . . . . . . . Matter Decay 1 | . . . . . . . . . . . . . . . . 1 . Siege Activations . | . . . . . . . . . . . . . . . . . . Robots Corrupted 1 | . . . . . . . . . . . . . . . . . 1 Combat Hostiles 1 | . . . . . . . . . . . . . . . . . 1 Parts Fried 3 | . . . . 1 . . . . . . . . . . . . 2 Impact Corruptions 1 | . . 1 . . . . . . . . . . . . . . . Robots Melted 15 | . . . . . 3 . . . . . . 1 1 1 2 1 6 Combat Hostiles 15 | . . . . . 3 . . . . . . 1 1 1 2 1 6 Parts Melted 122 | . 1 1 . . 21 7 1 . 3 5 2 5 9 7 14 16 30 Heat Transferred 39540 | 185 400 1036 . 111 9107 3714 261 . 578 3458 1945 1555 3230 2114 2626 3675 5545 Parts Sabotaged 4 | . . . . . . . . . . . . . 3 . . . 1 Parts Stolen . | . . . . . . . . . . . . . . . . . . Parts Stripped . | . . . . . . . . . . . . . . . . . . Power Chain Reactions . | . . . . . . . . . . . . . . . . . . Alert | -11 -10 -10 -10 -9 -8 -7 -7 -7 -6 -6 -6 -6 -5 -4 -3 -2 -1 ------- Run | Yrd Mat Min Exi Min Mat Fac Low Low Fac Ext Cet Arc Fac Fac Res Res Acc Peak Influence 1020 | 10 214 190 . 170 879 803 . . 138 403 209 159 753 474 399 451 1020 Initial 378 | . 6 5 . . 29 378 . . 107 12 196 . 3 299 192 87 270 Average 301 | 3 66 74 . 53 568 509 . . 39 170 170 55 430 373 247 297 566 Maximum Alert Level 3 | . 1 . . . 3 3 . . . 2 1 . 3 2 1 2 3 Low Security (%) 46 | 100 90 100 . 100 19 . . . 100 56 98 100 31 . 40 20 . Level 1 21 | . 9 . . . 10 28 . . . 41 1 . 8 60 59 62 12 Level 2 20 | . . . . . 25 63 . . . 1 . . 30 39 . 17 61 Level 3 11 | . . . . . 44 8 . . . . . . 30 . . . 25 Level 4 . | . . . . . . . . . . . . . . . . . . Level 5 . | . . . . . . . . . . . . . . . . . . High Security . | . . . . . . . . . . . . . . . . . . Max Security . | . . . . . . . . . . . . . . . . . . Sterilizations 1 | . . . . . 1 . . . . . . . . . . . . Squads Dispatched 54 | . . . . 1 11 6 . . 4 2 . . 8 2 3 4 13 Investigation 5 | . . . . 1 1 1 . . . 1 . . . . . 1 . Extermination 19 | . . . . . . 2 . . 4 . . . 2 2 2 3 4 Reinforcement 9 | . . . . . 3 1 . . . 1 . . 3 . . . 1 Assault 10 | . . . . . 2 1 . . . . . . 3 . . . 4 Garrison 11 | . . . . . 5 1 . . . . . . . . 1 . 4 Intercept . | . . . . . . . . . . . . . . . . . . Searches Triggered . | . . . . . . . . . . . . . . . . . . Construction Impeded 1 | . . . . . . . . . . 1 . . . . . . . Haulers Reinforced 2 | . . . . . . 1 . . . . . . 1 . . . . Active Scanning Responses . | . . . . . . . . . . . . . . . . . . Cargo Convoy Interrupts . | . . . . . . . . . . . . . . . . . . Stealth | -11 -10 -10 -10 -9 -8 -7 -7 -7 -6 -6 -6 -6 -5 -4 -3 -2 -1 --------- Run | Yrd Mat Min Exi Min Mat Fac Low Low Fac Ext Cet Arc Fac Fac Res Res Acc Distress Signals 22 | . 1 . . . 6 2 . . . 2 1 . 3 . 3 1 3 Communications Jammed . | . . . . . . . . . . . . . . . . . . Distress Signals . | . . . . . . . . . . . . . . . . . . Times Spotted 387 | . 15 15 . 13 65 30 8 . 11 39 5 10 40 13 19 31 73 Peak Tracking Total 12 | . 3 3 . 4 8 7 4 . 5 6 5 1 11 4 6 5 12 Tactical Retreats 31 | . 1 . . 3 3 2 . . . 4 . . 4 1 1 2 10 Traps | -11 -10 -10 -10 -9 -8 -7 -7 -7 -6 -6 -6 -6 -5 -4 -3 -2 -1 ------- Run | Yrd Mat Min Exi Min Mat Fac Low Low Fac Ext Cet Arc Fac Fac Res Res Acc Traps Triggered 12 | . . . . . 1 . . . . 4 . . . . . 5 2 Indirectly 1 | . . . . . 1 . . . . . . . . . . . . Trap Hack Attempts . | . . . . . . . . . . . . . . . . . . Triggered . | . . . . . . . . . . . . . . . . . . Disarmed . | . . . . . . . . . . . . . . . . . . Reprogrammed . | . . . . . . . . . . . . . . . . . . Reused . | . . . . . . . . . . . . . . . . . . Traps Extracted . | . . . . . . . . . . . . . . . . . . Installed . | . . . . . . . . . . . . . . . . . . Triggered 2 | . . . . 1 . . . 1 . . . . . . . . . Machines | -11 -10 -10 -10 -9 -8 -7 -7 -7 -6 -6 -6 -6 -5 -4 -3 -2 -1 ---------- Run | Yrd Mat Min Exi Min Mat Fac Low Low Fac Ext Cet Arc Fac Fac Res Res Acc Machines Disabled 32 | . 3 1 . . 3 4 . . . 2 . 2 5 6 . 1 5 Max in Single Turn 4 | . 1 1 . . 2 4 . . . 2 . 1 4 3 . 1 1 Garrison Access 4 | . . . . . 1 1 . . . . . . 1 . . 1 . Energy Cycler 2 | . . . . . . . . . . 2 . . . . . . . Machines Repaired . | . . . . . . . . . . . . . . . . . . Machines Dismantled . | . . . . . . . . . . . . . . . . . . Machines Sabotaged . | . . . . . . . . . . . . . . . . . . Overloaded Fab Kills . | . . . . . . . . . . . . . . . . . . Hacking | -11 -10 -10 -10 -9 -8 -7 -7 -7 -6 -6 -6 -6 -5 -4 -3 -2 -1 --------- Run | Yrd Mat Min Exi Min Mat Fac Low Low Fac Ext Cet Arc Fac Fac Res Res Acc Machines Accessed 42 | . 6 1 1 2 7 4 3 . 2 4 3 1 4 . . 3 1 Terminals 29 | . 6 . . 1 5 3 . . 1 4 3 . 3 . . 2 1 Fabricators 1 | . . . . . . . . . 1 . . . . . . . . Repair Stations . | . . . . . . . . . . . . . . . . . . Recycling Units 1 | . . . . . 1 . . . . . . . . . . . . Scanalyzers . | . . . . . . . . . . . . . . . . . . Garrison Access 4 | . . . . . 1 1 . . . . . . 1 . . 1 . Total Hacks 80 | . 14 1 1 4 14 5 7 . 2 9 7 2 8 . . 5 1 Successful 38 | . 7 1 1 1 8 2 7 . . 3 1 2 3 . . 1 1 Failed 42 | . 7 . . 3 6 3 . . 2 6 6 . 5 . . 4 . Catastrophic 9 | . 1 . . 1 1 1 . . 2 . 2 . 1 . . . . Database Lockouts . | . . . . . . . . . . . . . . . . . . Manual 29 | . 5 . 1 3 10 3 . . 1 . . . 2 . . 4 . Terminals 59 | . 14 . . 3 10 4 . . 1 9 7 . 6 . . 4 1 Fabricators 1 | . . . . . . . . . 1 . . . . . . . . Repair Stations . | . . . . . . . . . . . . . . . . . . Recycling Units 1 | . . . . . 1 . . . . . . . . . . . . Scanalyzers . | . . . . . . . . . . . . . . . . . . Garrison Access 7 | . . . . . 3 1 . . . . . . 2 . . 1 . Terminal Hacks 34 | . 7 1 1 1 6 1 7 . . 3 1 2 3 . . . 1 Record 11 | . . . . . . 1 5 . . 1 1 2 . . . . 1 Robot Analysis 6 | . 3 . . . 2 . . . . . . . 1 . . . . Prototype ID Bank 1 | . 1 . . . . . . . . . . . . . . . . Open Door 4 | . . 1 . 1 . . 2 . . . . . . . . . . Open DSF 1 | . . . . . . . . . . . . . 1 . . . . Fabricator Index 1 | . . . . . . . . . . . . . 1 . . . . Alert Level 4 | . . . . . 2 . . . . 2 . . . . . . . Unreport Threat 1 | . . . . . 1 . . . . . . . . . . . . Locate Traps 2 | . 2 . . . . . . . . . . . . . . . . Maintenance Status 1 | . . . . . 1 . . . . . . . . . . . . Registered Components 1 | . 1 . . . . . . . . . . . . . . . . Derelict Proto ID Bank 1 | . . . 1 . . . . . . . . . . . . . . Fabricator Hacks . | . . . . . . . . . . . . . . . . . . Repair Station Hacks . | . . . . . . . . . . . . . . . . . . Recycling Unit Hacks 1 | . . . . . 1 . . . . . . . . . . . . Retrieve Components 1 | . . . . . 1 . . . . . . . . . . . . Scanalyzer . | . . . . . . . . . . . . . . . . . . Garrison Access Hacks . | . . . . . . . . . . . . . . . . . . Unauthorized Hacks 3 | . . . . . 1 1 . . . . . . . . . 1 . Terminals . | . . . . . . . . . . . . . . . . . . Fabricators . | . . . . . . . . . . . . . . . . . . Repair Stations . | . . . . . . . . . . . . . . . . . . Recycling Units . | . . . . . . . . . . . . . . . . . . Scanalyzers . | . . . . . . . . . . . . . . . . . . Garrison Access 3 | . . . . . 1 1 . . . . . . . . . 1 . Jam 3 | . . . . . 1 1 . . . . . . . . . 1 . Data Cores Recovered 1 | . . . . . . 1 . . . . . . . . . . . Used . | . . . . . . . . . . . . . . . . . . Hacking Detections 24 | . 4 . . 1 4 2 . . 2 3 3 . 2 . . 2 1 Full Trace Events . | . . . . . . . . . . . . . . . . . . Feedback Events . | . . . . . . . . . . . . . . . . . . Feedback Blocked . | . . . . . . . . . . . . . . . . . . Robot Schematics Acquired . | . . . . . . . . . . . . . . . . . . Robots Built . | . . . . . . . . . . . . . . . . . . Authchips . | . . . . . . . . . . . . . . . . . . Time . | . . . . . . . . . . . . . . . . . . Total Robot Build Rating . | . . . . . . . . . . . . . . . . . . Part Schematics Acquired . | . . . . . . . . . . . . . . . . . . Parts Built . | . . . . . . . . . . . . . . . . . . Authchips . | . . . . . . . . . . . . . . . . . . Time . | . . . . . . . . . . . . . . . . . . Total Part Build Rating . | . . . . . . . . . . . . . . . . . . Parts Repaired . | . . . . . . . . . . . . . . . . . . Time . | . . . . . . . . . . . . . . . . . . Parts Recycled . | . . . . . . . . . . . . . . . . . . Recycled Matter . | . . . . . . . . . . . . . . . . . . Retrieved Matter . | . . . . . . . . . . . . . . . . . . Retrieved Components 10 | . . . . . 10 . . . . . . . . . . . . Parts Scanalyzed . | . . . . . . . . . . . . . . . . . . Part Schematics Acquired . | . . . . . . . . . . . . . . . . . . Parts Damaged . | . . . . . . . . . . . . . . . . . . Bothacking | -11 -10 -10 -10 -9 -8 -7 -7 -7 -6 -6 -6 -6 -5 -4 -3 -2 -1 ------------ Run | Yrd Mat Min Exi Min Mat Fac Low Low Fac Ext Cet Arc Fac Fac Res Res Acc Used RIF Installer . | . . . . . . . . . . . . . . . . . . Robots Hacked . | . . . . . . . . . . . . . . . . . . Non-combat . | . . . . . . . . . . . . . . . . . . Combat . | . . . . . . . . . . . . . . . . . . Robot Hacks Applied . | . . . . . . . . . . . . . . . . . . Relay Couplers Released . | . . . . . . . . . . . . . . . . . . Fabnet Peak Effective % . | . . . . . . . . . . . . . . . . . . Robots Rewired 11 | . . . . . . . . . . 11 . . . . . . . Allies Hacked . | . . . . . . . . . . . . . . . . . . Hacks Repelled . | . . . . . . . . . . . . . . . . . . Allies | -11 -10 -10 -10 -9 -8 -7 -7 -7 -6 -6 -6 -6 -5 -4 -3 -2 -1 -------- Run | Yrd Mat Min Exi Min Mat Fac Low Low Fac Ext Cet Arc Fac Fac Res Res Acc Total Allies 15 | . . 3 . . . . . . . 12 . . . . . . . Largest Group 4 | . . 3 . . . . . . . 4 4 . . . . . . Highest-Rated Group 123 | . . 40 . . . . . . . 123 123 . . . . . . Highest-Rated Ally 39 | . . 16 . . . . . . . 39 39 . . . . . . Total Orders 7 | . . . . . . . . . . . . . . . 4 2 1 EXPLORE 4 | . . . . . . . . . . . . . . . 2 1 1 RETURN 3 | . . . . . . . . . . . . . . . 2 1 . Ally Attacks 73 | . . . . . . . . . . 70 3 . . . . . . Total Damage 1412 | . . . . . . . . . . 1366 46 . . . . . . Kills 12 | . . . . . . . . . . 12 . . . . . . . Allies Corrupted 1 | . . . . . . . . . . . . . . . . . 1 Allies Melted 1 | . . . . . . . . . . 1 . . . . . . . Intel | -11 -10 -10 -10 -9 -8 -7 -7 -7 -6 -6 -6 -6 -5 -4 -3 -2 -1 ------- Run | Yrd Mat Min Exi Min Mat Fac Low Low Fac Ext Cet Arc Fac Fac Res Res Acc Robot Analysis Total 6 | . 3 . . . 2 . . . . . . . 1 . . . . Derelict Logs Recovered 3 | . . 1 . . . . 2 . . . . . . . . . . Drone Launches 4 | . . . . . . . . . . . . . . . 2 1 1 Drone Recoveries 3 | . . . . . . . . . . . . . . . 2 1 . Exploration | -11 -10 -10 -10 -9 -8 -7 -7 -7 -6 -6 -6 -6 -5 -4 -3 -2 -1 ------------- Run | Yrd Mat Min Exi Min Mat Fac Low Low Fac Ext Cet Arc Fac Fac Res Res Acc Turns Passed 20839 | 147 844 1138 448 1086 2695 1826 1231 124 1832 1872 445 721 1368 1060 927 1397 1678 Spaces Moved 8757 | 85 483 530 236 541 890 891 529 49 674 645 178 349 652 431 343 613 638 Core 58 | 4 . . . . . . . . . . . . . . . . 54 Treads 6203 | . 384 365 . . 690 891 527 49 674 202 . 294 652 431 343 613 88 Legs 2496 | 81 99 165 236 541 200 . 2 . . 443 178 55 . . . . 496 Wheels . | . . . . . . . . . . . . . . . . . . Hover . | . . . . . . . . . . . . . . . . . . Flight . | . . . . . . . . . . . . . . . . . . Fastest Speed 50 | 50 120 160 190 190 163 163 163 250 250 190 192 160 160 160 155 150 50 Average Speed 192 | 116 151 169 190 190 234 167 215 250 250 212 192 165 160 202 220 167 178 Slowest Speed 490 | 120 160 330 190 190 470 243 280 250 250 490 192 192 240 240 240 232 255 Overloaded Moves . | . . . . . . . . . . . . . . . . . . Propulsion Burnouts . | . . . . . . . . . . . . . . . . . . Robots Hopped . | . . . . . . . . . . . . . . . . . . Cave-ins Triggered . | . . . . . . . . . . . . . . . . . . Exploration Rate (%) 44 | 5 87 83 61 94 69 19 67 10 20 66 61 91 13 10 13 20 14 Regions Visited 17 Branch Regions 8 Pre-discovered Areas 2 | . . 1 . 1 . . . . . . . . . . . . . Known Exits Taken 6 | . . . . . . 1 . . 1 . . 1 . 1 1 1 . Unknown Exits Taken 11 | 1 1 1 1 1 1 . 1 1 . 1 1 . 1 . . . . Scrap Searched 12 | . . 3 . 2 . . 7 . . . . . . . . . . Spaces Dug 81 | . . . . . 1 1 . . 15 54 . . 3 . . 6 1 Terrain Destroyed 612 | . 32 20 . 66 63 30 36 . 15 117 55 4 51 25 6 28 64 Melee . | . . . . . . . . . . . . . . . . . . Projectile 126 | . . . . . 11 4 1 . . 5 4 4 20 6 6 28 37 AOE 486 | . 32 20 . 66 52 26 35 . 15 112 51 . 31 19 . . 27 Terrain Rammed . | . . . . . . . . . . . . . . . . . . Walls Destroyed . | . . . . . . . . . . . . . . . . . . Machines Disabled . | . . . . . . . . . . . . . . . . . . Actions | -11 -10 -10 -10 -9 -8 -7 -7 -7 -6 -6 -6 -6 -5 -4 -3 -2 -1 --------- Run | Yrd Mat Min Exi Min Mat Fac Low Low Fac Ext Cet Arc Fac Fac Res Res Acc Total 11405 | 113 566 675 237 583 1243 1098 603 52 799 1019 232 453 859 568 457 875 973 Wait 1116 | 6 31 53 . 4 108 84 32 . 84 126 1 44 99 58 53 169 164 Move 8740 | 84 482 529 235 540 889 890 528 48 673 644 177 348 651 430 342 612 638 Hop . | . . . . . . . . . . . . . . . . . . Pick Up 193 | 7 16 12 1 4 26 20 6 1 10 13 6 13 17 14 7 9 11 Fast Attach 97 | 7 . 3 . 1 16 3 7 1 2 11 5 5 7 11 4 4 10 Attach 94 | . 1 5 . . 8 6 1 . 2 7 6 4 17 4 2 5 26 Detach 2 | . . . . . . . . . . 1 . . . 1 . . . Swap 183 | . 8 13 . 10 31 17 8 . 8 24 6 3 9 10 7 12 17 Drop 198 | . 11 10 1 10 32 18 12 2 10 14 8 16 4 17 12 11 10 Fire 646 | 9 17 50 . 14 133 60 9 . 10 58 23 20 55 23 27 49 89 Melee . | . . . . . . . . . . . . . . . . . . Ram . | . . . . . . . . . . . . . . . . . . Kick 1 | . . . . . . . . . . . . . . . . . 1 Crush 3 | . . . . . . . . . . . . . . . 3 . . Escape Stasis 26 | . . . . . . . . . . 15 . . . . . 4 7 Rewire 106 | . . . . . . . . . . 106 . . . . . . . Trap . | . . . . . . . . . . . . . . . . . . Miscellaneous . | . . . . . . . . . . . . . . . . . . Route ------- -11/Scrapyard -10/Materials (discovered 5 exits: [*Mat x3] / *Min x2) -10/Mines (discovered 3 exits: [*Mat x2] / *Exi) -10/Exiles -9/Mines (discovered 2 exits: *Mat x2) -8/Materials (discovered 2 exits: *Fac x2) -7/Factory -7/Lower Caves -7/Lower Caves -6/Factory (discovered 3 exits: Fac / Low / *Ext) -6/Extension (discovered 2 exits: *Fac / *Cet) -6/Cetus -6/Archives (discovered 3 exits: *Fac / [*Hub x2]) -5/Factory -4/Factory (discovered 2 exits: *Res x2) -3/Research -2/Research -1/Access History --------- Turn | Location | Event 5 | -11/Scrapyard | Discovered new exit (range 15) 148 | -11/Scrapyard | Entered Materials 303 | -10/Materials | Build established: Mutant 511 | -10/Materials | Discovered new exit (range 14) 567 | -10/Materials | Discovered new exit (range 14) 705 | -10/Materials | Discovered new exit (range 6) 801 | -10/Materials | Discovered new exit (range 12) 917 | -10/Materials | Discovered new exit (range 3) 992 | -10/Materials | Entered Mines 1219 | -10/Mines | Discovered new exit (range 9) 1468 | -10/Mines | Core integrity fell below 50% 1507 | -10/Mines | Received a Rocket Launcher from a helpful Derelict 1601 | -10/Mines | Discovered new exit (range 10) 1623 | -10/Mines | Assisted by bots powering up and referring to "LRC-V3" 1692 | -10/Mines | Excavation squad dispatched 1692 | -10/Mines | A large section of the Mines collapsed 1723 | -10/Mines | Lost 3 allies 1805 | -10/Mines | Lost 3 parts (1p1n1w) 1907 | -10/Mines | Deemed a non-threat by the Exiles lab entrance 1907 | -10/Mines | Discovered new exit (range 5) 1966 | -10/Mines | Found the Drone Emporium 2071 | -10/Mines | Found Prototype Device 2130 | -10/Mines | Entered Exiles 2182 | -10/Exiles | Met 8R-AWN 2208 | -10/Exiles | Met EX-HEX 2262 | -10/Exiles | Met EX-BIN 2282 | -10/Exiles | Aligned with FarCom system 2284 | -10/Exiles | Given EX-Vault access code 2328 | -10/Exiles | Opened EX-Vault 2342 | -10/Exiles | Found Gui. Plasma Cannon 2381 | -10/Exiles | Warned to stay clear of 0b10 Research branches 2436 | -10/Exiles | Met EX-DEC 2561 | -10/Exiles | Discovered new exit (range 10) 2578 | -10/Exiles | Left Exiles lab with Gui. Plasma Cannon 2578 | -10/Exiles | Entered Mines 2753 | -9/Mines | Learned location of Storage (-8) 3009 | -9/Mines | Met a Derelict shopkeep closing up shop 3562 | -9/Mines | Discovered new exit (range 7) 3583 | -9/Mines | Discovered new exit (range 13) 3664 | -9/Mines | Entered Materials 3664 | -8/Materials | Evolved 4 slots: Power x1, Propulsion x1, Utility x2 3813 | -8/Materials | Build established: Scavenger-Mutant 4108 | -8/Materials | Garrison activated, responded to threat 4186 | -8/Materials | Lost 3 parts (1p2n) 4409 | -8/Materials | Garrison activated, responded to threat 4488 | -8/Materials | Destroyed 9 combat bots 4864 | -8/Materials | First assault squad dispatched 4946 | -8/Materials | Destroyed 8 combat bots 5288 | -8/Materials | Discovered new exit (range 11) 5718 | -8/Materials | Sterilization system engaged 5718 | -8/Materials | Non-combat units ordered to evacuate 5724 | -8/Materials | Destroyed 7 combat bots 5818 | -8/Materials | Combat units ordered to evacuate 5998 | -8/Materials | Discovered new exit (range 8) 6018 | -8/Materials | Ambient heat levels rising (+10) 6168 | -8/Materials | Ambient heat levels rising (+10) 6318 | -8/Materials | Ambient heat levels rising (+10) 6359 | -8/Materials | Entered Factory 6359 | -7/Factory | Evolved 2 slots: Propulsion x1, Weapon x1 6699 | -7/Factory | Build established: Scavenger-Skirmisher 7188 | -7/Factory | Build established: Skirmisher 7722 | -7/Factory | Garrison activated, responded to threat 7830 | -7/Factory | Discovered new exit (range 7) 7959 | -7/Factory | First assault squad dispatched 8173 | -7/Factory | Build established: Tank 8185 | -7/Factory | Identified exit to Lower Caves 8185 | -7/Factory | Entered Lower Caves 8310 | -7/Lower Caves | Learned 8 Factory zone layouts 8488 | -7/Lower Caves | Build established: Scavenger-Tank 8488 | -7/Lower Caves | Learned 8 Factory zone layouts 8488 | -7/Lower Caves | Learned Factory trap positions 8488 | -7/Lower Caves | Learned Extension emergency access door positions 8488 | -7/Lower Caves | Learned Factory stockpile data 8802 | -7/Lower Caves | Build established: Tank 8901 | -7/Lower Caves | Learned 8 Factory zone layouts 9240 | -7/Lower Caves | Discovered new exit (range 7) 9416 | -7/Lower Caves | Entered another Lower Caves area 9522 | -7/Lower Caves | Discovered new exit (range 5) 9540 | -7/Lower Caves | Entered Factory 9540 | -6/Factory | Evolved 2 slots: Utility x2 9541 | -6/Factory | Identified exit to Extension 9541 | -6/Factory | Identified exit to Factory 9541 | -6/Factory | Identified exit to Lower Caves 9542 | -6/Factory | Loaded intel: 76 trap records 9831 | -6/Factory | Build established: Scavenger-Skirmisher 11372 | -6/Factory | Entered Extension 11667 | -6/Extension | Build established: Scavenger-Tank 11755 | -6/Extension | Energy Cycler disabled 11755 | -6/Extension | Rescued a captive Derelict 11757 | -6/Extension | Rescued a captive Derelict 11760 | -6/Extension | Rescued a captive Derelict 11796 | -6/Extension | Lost 3 parts (1n1u1w) 11981 | -6/Extension | Lost 3 parts (2n1u) 12347 | -6/Extension | Disrupted transfer network 12372 | -6/Extension | Lost 3 allies 13200 | -6/Extension | Build established: Scavenger-Skirmisher 13209 | -6/Extension | Discovered exit to Factory (range 10) 13211 | -6/Extension | Discovered new exit (range 6) 13244 | -6/Extension | Entered Cetus 13244 | -6/Cetus | Accompanied by 4 allies 13270 | -6/Cetus | Spotted Cetus Guard 13270 | -6/Cetus | Spotted Cetus Guard 13286 | -6/Cetus | Spotted Cetus Guard 13292 | -6/Cetus | Destroyed Cetus Guard 13296 | -6/Cetus | Spotted Cetus Guard 13311 | -6/Cetus | Destroyed Cetus Guard 13325 | -6/Cetus | Lost 4 allies 13325 | -6/Cetus | Destroyed Cetus Guard 13351 | -6/Cetus | Lost 7 parts (1p1n3u2w) 13355 | -6/Cetus | Destroyed Cetus Guard 13598 | -6/Cetus | Discovered new exit (range 15) 13689 | -6/Cetus | Entered Archives 13987 | -6/Archives | Unable to access archive contents 13995 | -6/Archives | Discovered exit to Factory (range 14) 14006 | -6/Archives | Unable to access archive contents 14016 | -6/Archives | Discovered new exit (range 16) 14025 | -6/Archives | Unable to access archive contents 14032 | -6/Archives | Discovered new exit (range 14) 14043 | -6/Archives | Unable to access archive contents 14197 | -6/Archives | Unable to access archive contents 14318 | -6/Archives | Identified Decoy Drone Bay 14410 | -6/Archives | Entered Factory 14410 | -5/Factory | Evolved 2 slots: Utility x2 14414 | -5/Factory | Identified exit to DSF 15010 | -5/Factory | First assault squad dispatched 15012 | -5/Factory | Lost 5 parts (1p1n2u1w) 15110 | -5/Factory | Lost 3 parts (3w) 15256 | -5/Factory | Lost 4 parts (2n1u1w) 15286 | -5/Factory | Discovered new exit (range 9) 15495 | -5/Factory | Build established: Scavenger-Tank 15778 | -5/Factory | Entered another Factory area 15778 | -4/Factory | Evolved 2 slots: Power x1, Utility x1 15779 | -4/Factory | Identified exit to Research 16109 | -4/Factory | Lost 3 parts (1p1n1u) 16230 | -4/Factory | Build established: Scavenger-Skirmisher 16661 | -4/Factory | Build established: Scavenger-Tank 16701 | -4/Factory | Discovered exit to Research (range 11) 16838 | -4/Factory | Entered Research 16838 | -3/Research | Evolved 2 slots: Utility x2 17045 | -3/Research | Garrison activated, responded to threat 17212 | -3/Research | Discovered new exit (range 5) 17234 | -3/Research | Identified exit to Research 17765 | -3/Research | Entered another Research area 17765 | -2/Research | Evolved 2 slots: Propulsion x1, Utility x1 18825 | -2/Research | System corruption reached 10% 19130 | -2/Research | Discovered new exit (range 15) 19160 | -2/Research | Identified exit to Access 19162 | -2/Research | Entered Access 19162 | -1/Access | Evolved 2 slots: Propulsion x1, Utility x1 19457 | -1/Access | First assault squad dispatched 20303 | -1/Access | Garrison activated, responded to threat 20402 | -1/Access | Lost 4 parts (1n3u) 20403 | -1/Access | Destroyed 7 combat bots 20513 | -1/Access | Spotted B-99 Colossus 20577 | -1/Access | Garrison activated, responded to threat 20790 | -1/Access | System corruption reached 10% 20806 | -1/Access | Released all parts (10) 20808 | -1/Access | Core integrity fell below 50% 20828 | -1/Access | Core integrity fell below 20% 20836 | -1/Access | Lost 27 parts (4p6n12u5w) 20840 | -1/Access | Destroyed by S-43 Plague with Heavy Machine Gun Last Messages --------------- 20806_ Released Imp. Shock Absorption System. 20806_ Released Imp. Recalibrator. 20806_ Released Enh. Nova Cannon. 20811_ R=KUNZT3>P3 Q8A G1W:GX2Z3ZH 20831_ System corrupted: Energy discharge (-23). Map ----- +----------------------------------------------------+ | | | | | | | | | | | | | | | | | | | | | | | | | | | | | | | | | | | | | ?????????????????????????????????????????????????? | | ?????????????????????????????????????????????????? | | ?????????????????????????????????????????????????? | | ?????????????????????????????????????????????????? | | ????????????????????????#########????????????????? | | ????????????????????????# +????????####????? | | ????????????????????????# #???????# +????? | | ?????????????????########@ #???????# #????? | | ?????????????? #???????+ +????? | | ????????????? #???????# #????? | | ????????????? k ######### ##???? | | ????????????############## #???? | | ?????????????????????????# #???? | | ?????????????????????????# +???? | | ?????????????????????????# #???? | | ?????????????????????????# #???? | | ?????????????????????????# #???? | | ?????????????????????????# #???? | | ?????????????????????????#s s """"" #???? | | ?????????????????????????#sss """"" #???? | | ???????????????????????? / """"" %#???? | | ???????????????????????? # ###### """"" ##### | | ??????????????????????? # ?????# """"" | | ??????????????????????? ?# ?????# | | ????????????????????????????????# % | | ????????????????????????????????# | | ????????????????????????????????# ############# | | ????????????????????????????????# ????????????? | | ????????????????????????????????# ??????????????? | | ????????????????????????????????# ???????????????? | | ????????????????????????????????#????????????????? | | ?????????????????????????????????????????????????? | +----------------------------------------------------+ Best States ------------- Heat Dissipation 128 Energy Generation 77 Energy Capacity 1005 Matter Stores 300 Matter Capacity 300 Sight Range 16 Robot Scan Range 14 Terrain Scan Density 10 Power Amplification 30 EM Shielding 2 Armor Coverage 600 Resistance: TH 20 Resistance: EX 50 Power Shielding 66 Phase Shifting 5 Evasion (%) 55 Target Analysis 12 Recoil Reduction 5 Energy Filtering 30 Particle Charging 20 Salvage Targeting 3 Item Schematics ----------------- None Robot Schematics ------------------ None Fabricated ------------ Nothing Alien Tech Used ----------------- None Achievements -------------- More Power To You Origins Challenges ------------ None Game ------ Seed CoolingVariableAutogun Manual? 0 Play Time 04:38:35 Cumulative 63.5 hours Start 2024.05.10 @ 12:33:56 End 2024.05.10 @ 21:20:03 Sessions 11 Manual Loads 0 Difficulty Rogue Special Mode None Game No. 39 Rogue 39 Adventurer 0 Explorer 0 Win Type - Total 0 Types 0/0/0/0/0/0/0/0/0 Lore% 44 Gallery% 48 Achievement% 35 Wizard Run 0 Options --------- Layout 0 ASCII 0 Keyboard 0 Movement Mouse Keybinds 0 Fullscreen 2 Font 18/SmallcapsGlow Map View 76x50 Zoom Use 0% Tactical HUD 1 Map Filters NONE Filters NONE Steam 1 RUN: 05c19213-3751-47c1-835f-67dd9ce478c5